bitfinex/quotes_ETHUSD_20220106
["timestamp","ask_amount","ask_price","bid_price","bid_amount"]
[1641443113499,1.88503041,3446.1,3445.5,1.87552726]
[1641443113697,0.00966319,3446.3,3445.5,1.87552726]
[1641443113896,0.01270416,3446.5,3445.5,1.87552726]
[1641443113897,0.00795792,3446.0,3445.5,1.87552726]
[1641443114101,0.00909477,3446.2,3445.5,1.87552726]
[1641443114328,0.73827416,3446.5,3445.5,1.87552726]
[1641443114329,0.0073895,3445.9,3445.5,1.87552726]
[1641443114529,0.00852635,3446.1,3445.5,2.17552726]
[1641443114728,0.345,3447.1,3445.5,2.17552726]
[1641443114729,0.00682108,3445.8,3445.5,2.64372726]
[1641443114932,0.00795792,3446.0,3445.7,0.72554]
[1641443115129,0.345,3447.6,3446.6,1.00094367]
[1641443115428,0.345,3447.6,3445.7,0.5051]
[1641443115429,0.01648428,3447.5,3446.2,0.6474]
[1641443115627,0.01648428,3447.5,3446.2,0.9474]
[1641443115827,0.01591585,3447.4,3446.2,0.9474]
[1641443116029,0.01591585,3447.4,3446.6,0.7253]
[1641443116231,2.22606531,3447.3,3446.8,1.79219686]
[1641443116432,0.01534743,3447.3,3446.8,1.79219686]
[1641443116639,0.01477901,3447.2,3446.8,1.79219686]
[1641443117033,0.01421058,3447.1,3446.8,1.79219686]
[1641443117435,0.01364216,3447.0,3446.8,1.79219686]
[1641443117635,0.01364216,3447.0,3446.9,0.72529]
[1641443117835,0.37865893,3448.2,3446.8,1.79219686]
[1641443118077,0.67865893,3448.2,3446.8,1.79219686]
[1641443118278,0.01307374,3446.9,3446.8,1.79219686]
[1641443118483,0.01307374,3446.9,3446.8,2.09219686]
[1641443118684,0.01307374,3446.9,3446.8,6.84219686]
[1641443119084,0.01307374,3446.9,3446.8,7.84219686]
[1641443119485,0.01307374,3446.9,3446.8,8.14219686]
[1641443119689,6.17,3448.5,3446.9,7.85]
[1641443119991,0.0073895,3448.2,3447.7,0.3]
[1641443120186,0.0073895,3448.2,3448.0,0.72503]
[1641443120385,0.00682108,3448.1,3448.0,0.72503]
[1641443120786,0.00682108,3448.1,3448.0,3.7076559]
[1641443121387,0.00682108,3448.1,3448.0,4.7703207]
[1641443121589,0.00682108,3448.1,3448.0,11.8986207]
[1641443122438,0.01258362,3449.6,3448.0,11.8986207]
[1641443122439,0.00155042,3449.6,3449.1,1.03485252]
[1641443122636,0.00155042,3449.6,3449.1,1.78165252]
[1641443122838,0.00795793,3449.5,3449.1,0.7468]
[1641443123237,0.0073895,3449.4,3449.1,0.7468]
[1641443123636,0.00682108,3449.3,3449.2,1.91592315]
[1641443124838,0.00682108,3449.3,3449.2,3.29783561]
[1641443125671,0.00682108,3449.3,3449.2,1.91592315]
[1641443127379,0.00682108,3449.3,3449.2,3.16830971]
[1641443127980,2.108e-05,3449.3,3449.2,3.46830971]
[1641443128181,2.108e-05,3449.3,3449.2,2.1315]
[1641443128380,2.108e-05,3449.3,3449.2,1.16173596]
[1641443128578,5.97147494,3451.0,3449.2,1.16173596]
[1641443128780,5.97147494,3451.0,3449.2,2.10166818]
[1641443128979,0.00909477,3450.9,3450.0,0.3]
[1641443129251,0.00909477,3450.9,3450.7,2.12031517]
[1641443129442,0.00852635,3450.8,3450.7,9.08121517]
[1641443130046,0.00852635,3450.8,3450.7,10.38121517]
[1641443130847,0.00852635,3450.8,3450.7,4.03121517]
[1641443131049,0.00852635,3450.8,3450.7,2.12031517]
[1641443131246,0.00852635,3450.8,3449.6,2.44891]
[1641443131445,0.00852635,3450.8,3449.7,7.0562]
[1641443131647,0.00795793,3450.7,3449.7,7.0562]
[1641443131945,1.71166872,3451.7,3449.7,7.0562]
[1641443131946,0.0073895,3450.6,3449.9,0.72448]
[1641443132149,0.0073895,3450.6,3450.5,6.2297026]
[1641443132345,1.69914939,3451.7,3450.9,1.65222295]
[1641443132545,1.99914939,3451.7,3450.9,1.65222295]
[1641443134185,1.3,3452.1,3450.9,1.65222295]
[1641443134388,0.72447,3451.9,3450.9,1.65222295]
[1641443134588,0.3,3451.7,3450.9,1.65222295]
[1641443134794,0.01534743,3452.0,3451.2,1.15735763]
[1641443134991,0.01307374,3451.6,3451.2,1.15735763]
[1641443135189,0.01477901,3451.9,3451.2,1.15735763]
[1641443135389,0.01250531,3451.5,3451.2,1.15735763]
[1641443135688,0.01289003,3452.3,3451.7,2.19380995]
[1641443136088,0.01648428,3452.2,3451.7,2.19380995]
[1641443136492,0.01591586,3452.1,3451.7,2.19380995]
[1641443136727,0.74030586,3452.1,3451.7,2.19380995]
[1641443136927,0.01534743,3452.0,3451.7,2.19380995]
[1641443137132,0.31534743,3452.0,3451.7,2.19380995]
[1641443137335,0.01477901,3451.9,3450.8,1.3626648]
[1641443137734,0.01421059,3451.8,3450.8,1.3626648]
[1641443137933,0.01421059,3451.8,3451.4,1.29705304]
[1641443138132,0.01364216,3451.7,3451.4,1.29705304]
[1641443138532,0.01307374,3451.6,3451.5,6.49819639]
[1641443138732,0.01307374,3451.6,3451.5,1.79819639]
[1641443139132,0.01307374,3451.6,3451.5,2.79819639]
[1641443139536,0.01307374,3451.6,3451.5,1.79819639]
[1641443140136,0.01307374,3451.6,3450.9,3.6987]
[1641443140338,0.01307374,3451.6,3450.8,0.0626648]
[1641443140589,1.96011784,3452.0,3450.8,0.05288342]
[1641443140590,0.01250531,3451.5,3450.8,0.05288342]
[1641443140991,0.01193689,3451.4,3450.8,0.05288342]
[1641443141190,0.01193689,3451.4,3451.2,2.12691454]
[1641443141392,0.01136847,3451.3,3451.2,2.12691454]
[1641443143095,0.01136847,3451.3,3451.2,2.42691454]
[1641443143296,0.01136847,3451.3,3451.2,2.12691454]
[1641443143700,0.01136847,3451.3,3451.2,2.42691454]
[1641443145337,0.01136847,3451.3,3451.2,2.12691454]
[1641443151930,0.01136847,3451.3,3451.2,2.42691454]
[1641443152333,1.26842483,3452.6,3451.2,2.42691454]
[1641443152534,0.26842483,3452.6,3451.2,2.42691454]
[1641443152733,0.00682108,3452.5,3451.2,2.69551454]
[1641443152938,0.345,3452.4,3451.2,2.69551454]
[1641443153134,0.345,3452.4,3451.2,3.41974454]
[1641443153135,0.35125266,3452.4,3451.2,3.41974454]
[1641443153336,0.00568423,3452.3,3451.2,3.41974454]
[1641443153538,0.00568423,3452.3,3452.2,1.66560626]
[1641443153739,0.00511581,3452.2,3451.2,0.3]
[1641443153936,0.00568423,3452.3,3451.2,0.3]
[1641443154140,0.00454739,3452.1,3451.0,1.0242805]
[1641443154337,0.00511581,3452.2,3451.0,1.0242805]
[1641443154536,0.00397896,3452.0,3451.1,0.00113685]
[1641443154736,0.00454739,3452.1,3451.9,1.91674192]
[1641443154936,6.33021989,3452.9,3451.9,1.91674192]
[1641443154937,1.0,3452.8,3451.9,1.91674192]
[1641443155135,1.645,3452.8,3451.9,1.91674192]
[1641443155337,1.65352635,3452.8,3451.9,1.91674192]
[1641443156189,7.85,3452.7,3450.7,1.26674671]
[1641443156389,0.01235387,3452.5,3451.3,1.42484011]
[1641443156588,0.01235387,3452.5,3451.3,2.36764011]
[1641443156789,0.00738951,3452.4,3451.3,2.36764011]
[1641443156994,0.00738951,3452.4,3451.4,2.12792976]
[1641443157191,0.00682108,3452.3,3451.9,1.73632199]
[1641443157391,0.00682108,3452.3,3451.9,2.74198102]
[1641443157593,6.17,3453.0,3451.9,3.04198102]
[1641443157594,0.00625266,3452.2,3451.9,3.04198102]
[1641443157892,0.00568424,3452.1,3451.9,2.74198102]
[1641443158098,0.00568424,3452.1,3451.9,2.03632199]
[1641443158290,1.79063489,3452.8,3451.9,2.03632199]
[1641443158291,1.80360048,3452.8,3451.9,2.03632199]
[1641443158495,0.01296559,3452.8,3451.9,1.73632199]
[1641443158695,0.00909478,3452.7,3451.9,1.73632199]
[1641443159097,0.00852635,3452.6,3451.9,1.73632199]
[1641443159537,1.99983379,3452.4,3451.6,0.13819997]
[1641443159737,0.01229382,3451.9,3450.8,0.00170527]
[1641443159936,0.72455,3451.7,3450.8,0.00170527]
[1641443160136,0.345,3451.6,3450.5,0.00341054]
[1641443160336,0.345,3451.5,3450.5,0.00341054]
[1641443160537,0.34727369,3451.5,3450.5,0.00341054]
[1641443160739,0.00170527,3451.4,3450.5,0.00341054]
[1641443160936,1.64894822,3451.1,3450.6,2.09255909]
[1641443161136,0.72467,3451.0,3450.0,0.00625266]
[1641443161338,1.99394822,3451.1,3450.7,0.00227369]
[1641443161535,1.99394822,3451.1,3450.0,0.00625266]
[1641443161737,1.99394822,3451.1,3449.8,0.0073895]
[1641443161940,3.96005809,3451.0,3449.6,0.00852635]
[1641443162140,2.10100528,3450.2,3449.6,0.00852635]
[1641443162341,3.68682495,3450.1,3449.6,0.00852635]
[1641443162540,3.78752033,3450.1,3449.3,0.01023162]
[1641443162993,3.78752033,3450.1,3449.1,0.01136847]
[1641443163193,3.78752033,3450.1,3449.2,2.12567499]
[1641443163194,0.724973,3449.7,3449.2,2.12567499]
[1641443163505,0.72498,3449.5,3449.3,0.01023162]
[1641443164099,4.48649163,3449.4,3447.5,3.8728]
[1641443164296,0.7250911,3449.1,3448.3,0.01591586]
[1641443164497,4.54462517,3449.0,3448.3,0.01591586]
[1641443164697,2.90088,3448.8,3447.7,1.66930802]
[1641443164999,4.79595593,3448.7,3447.8,0.00852635]
[1641443165200,5.79595593,3448.7,3447.8,0.00852635]
[1641443165396,0.7252537,3448.4,3447.8,0.00852635]
[1641443165797,0.345,3449.0,3447.8,0.00852635]
[1641443166005,0.345,3449.9,3448.4,0.01289418]
[1641443166201,0.345,3449.9,3448.4,0.75749418]
[1641443166397,0.00284212,3449.8,3448.5,0.00454739]
[1641443166597,0.00284212,3449.8,3448.5,0.0482607]
[1641443166832,0.00227369,3449.7,3448.5,0.0482607]
[1641443167033,0.00227369,3449.7,3448.6,2.15796089]
[1641443167236,2.6199324,3450.3,3449.6,2.05734545]
[1641443167435,0.345,3450.3,3449.6,2.05734545]
[1641443167634,0.00511581,3450.2,3449.6,2.05734545]
[1641443168034,0.00454739,3450.1,3449.6,2.35734545]
[1641443168437,0.00397896,3450.0,3449.7,1.03996327]
[1641443168641,0.00397896,3450.0,3449.7,2.84846327]
[1641443168839,0.00341054,3449.9,3449.7,2.84846327]
[1641443169240,0.00284212,3449.8,3449.7,2.84846327]
[1641443169840,0.00284212,3449.8,3449.7,2.92344685]
[1641443170040,3.95045511,3452.3,3449.8,7.8]
[1641443170246,6.94,3452.4,3450.5,0.9177953]
[1641443170481,0.01250531,3452.0,3450.6,0.3]
[1641443170885,1.44878,3452.9,3450.6,8.1]
[1641443171088,0.808,3452.9,3452.6,10.75999814]
[1641443171295,5.97147494,3454.0,3452.6,0.8719]
[1641443171485,3.61972572,3453.8,3452.6,0.5719]
[1641443171686,0.00795793,3453.3,3452.6,0.5719]
[1641443172085,0.0073895,3453.2,3452.6,0.5719]
[1641443172286,0.0073895,3453.2,3453.0,1.62238867]
[1641443172484,1.70613293,3453.5,3453.0,1.62238867]
[1641443172485,0.00682108,3453.1,3453.0,2.22238867]
[1641443173085,0.00682108,3453.1,3453.0,10.36738867]
[1641443173896,0.00682108,3453.1,3453.0,0.945]
[1641443174093,0.00682108,3453.1,3453.0,0.645]
[1641443174337,0.00682108,3453.1,3453.0,0.345]
[1641443175139,0.00682108,3453.1,3453.0,2.45674907]
[1641443175339,0.00682108,3453.1,3453.0,0.345]
[1641443175539,0.01070259,3453.1,3453.0,0.345]
[1641443176344,0.01070259,3453.1,3453.0,2.07057241]
[1641443178384,0.01070259,3453.1,3452.6,0.724062]
[1641443178594,0.01070259,3453.1,3452.0,1.4482403]
[1641443178790,0.00625266,3453.0,3451.8,0.13819997]
[1641443179193,0.00568423,3452.9,3451.8,0.13819997]
[1641443179592,1.82788744,3452.6,3451.8,0.13819997]
[1641443179895,0.00341054,3452.5,3451.3,3.839]
[1641443180093,4.08213052,3452.5,3450.7,0.00682108]
[1641443180295,0.00284212,3452.4,3451.4,0.00284212]
[1641443180492,0.00284212,3452.4,3450.9,0.00568424]
[1641443180692,0.00227369,3452.3,3451.7,2.24904822]
[1641443181195,0.00170527,3452.2,3451.7,2.24904822]
[1641443181593,0.00113685,3452.1,3451.7,2.24904822]
[1641443182036,0.00388288,3452.3,3451.7,2.24904822]
[1641443182037,0.00170527,3452.2,3451.7,2.24904822]
[1641443182432,0.00113685,3452.1,3451.7,2.24904822]
[1641443182835,0.00170527,3452.2,3451.7,2.24904822]
[1641443183033,0.00178815,3452.3,3451.8,7.8]
[1641443183235,0.00178815,3452.3,3451.8,7.80227369]
[1641443183433,0.00178815,3452.3,3452.0,0.7241647]
[1641443183844,0.00178815,3452.3,3452.0,1.0241647]
[1641443184445,8.815e-05,3452.3,3452.1,0.3]
[1641443184840,8.815e-05,3452.3,3452.2,0.01253364]
[1641443185883,8.815e-05,3452.3,3452.2,0.35753364]
[1641443186286,0.13819997,3454.1,3452.9,0.72392]
[1641443186486,0.13819997,3454.1,3453.3,0.7238922]
[1641443186686,0.01023162,3454.0,3453.3,0.7238922]
[1641443186891,0.01023162,3454.0,3453.3,1.0238922]
[1641443187092,0.13819997,3454.1,3453.9,2.05382594]
[1641443187290,2.1399985,3454.4,3453.9,2.05382594]
[1641443187488,3.46023162,3454.0,3453.9,2.05382594]
[1641443187888,0.01023162,3454.0,3453.9,2.05382594]
[1641443189338,0.01023162,3454.0,3453.9,3.32896825]
[1641443191943,0.01023162,3454.0,3453.9,4.92896825]
[1641443192746,0.01023162,3454.0,3453.9,12.72896825]
[1641443193790,0.01023162,3454.0,3453.9,8.77896825]
[1641443194192,0.01023162,3454.0,3453.9,3.32896825]
[1641443194393,0.01023162,3454.0,3453.9,2.05382594]
[1641443194593,0.01023162,3454.0,3453.2,5.34731997]
[1641443194594,0.01023162,3454.0,3453.2,0.13819997]
[1641443194794,0.01023162,3454.0,3452.5,1.1791]
[1641443195100,0.0096632,3453.9,3452.2,7.8855]
[1641443195494,1.67273321,3453.8,3453.3,2.07914454]
[1641443195694,0.00909477,3453.8,3453.3,2.07914454]
[1641443195897,0.00852635,3453.7,3453.3,2.07914454]
[1641443196293,0.00795793,3453.6,3453.3,2.07914454]
[1641443196495,0.00795793,3453.6,3452.6,0.3]
[1641443196739,0.0073895,3453.5,3452.5,0.01217744]
[1641443197141,0.00682108,3453.4,3452.5,0.01217744]
[1641443197540,0.00625266,3453.3,3452.6,1.79148278]
[1641443197745,0.00625266,3453.3,3452.9,1.02561882]
[1641443197940,0.00568423,3453.2,3452.9,1.32561882]
[1641443198339,0.00511581,3453.1,3452.9,1.32561882]
[1641443198742,0.00454739,3453.0,3452.9,1.32561882]
[1641443198943,0.00454739,3453.0,3452.5,0.01217744]
[1641443199144,0.00454739,3453.0,3451.9,1.00170527]
[1641443199344,0.00397896,3452.9,3451.9,0.00170527]
[1641443199543,0.00397896,3452.9,3452.0,0.00113685]
[1641443199743,0.00341054,3452.8,3451.9,0.00170527]
[1641443200145,0.00284212,3452.7,3452.5,2.177801]
[1641443200584,0.00227369,3452.6,3452.5,2.177801]
[1641443201398,0.00227369,3452.6,3452.5,3.30388411]
[1641443201991,0.00227369,3452.6,3452.5,4.90388411]
[1641443203796,0.00227369,3452.6,3452.5,3.30388411]
[1641443203997,0.00227369,3452.6,3452.5,2.177801]
[1641443206143,0.00227369,3452.6,3452.5,2.477801]
[1641443206543,0.00227369,3452.6,3452.5,8.977801]
[1641443207147,0.00227369,3452.6,3452.5,2.177801]
[1641443207546,0.00227369,3452.6,3452.5,2.477801]
[1641443207746,0.00227369,3452.6,3452.5,2.177801]
[1641443208390,0.00227369,3452.6,3452.5,2.477801]
[1641443208791,0.00227369,3452.6,3451.9,0.00170527]
[1641443208994,0.34727369,3452.6,3451.9,0.00170527]
[1641443209192,0.00170527,3452.5,3451.9,0.00170527]
[1641443209593,0.00113685,3452.4,3451.9,0.00170527]
[1641443209992,1.60968561,3452.4,3452.0,2.1319947]
[1641443210196,1.60968561,3452.4,3451.9,0.00170527]
[1641443210397,0.72615527,3452.5,3451.9,0.00170527]
[1641443210594,0.72615527,3452.5,3451.3,0.00511581]
[1641443210799,0.00113685,3452.4,3451.3,0.00511581]
[1641443210996,0.345,3452.3,3451.3,0.00511581]
[1641443211196,5.04495999,3452.2,3451.3,0.00511581]
[1641443211497,5.04495999,3452.2,3450.3,1.29446916]
[1641443211498,2.0779519,3451.5,3451.0,1.71052202]
[1641443211744,0.38192506,3452.1,3451.0,1.71052202]
[1641443211745,0.345,3451.4,3451.0,1.71052202]
[1641443211950,0.345,3451.3,3451.1,0.00625266]
[1641443212849,0.72473,3451.1,3450.4,0.01023162]
[1641443213050,0.72473,3451.1,3450.1,0.01193689]
[1641443213249,0.345,3451.0,3450.1,0.01193689]
[1641443213453,1.87723367,3450.8,3450.4,2.09257866]
[1641443213649,2.22223367,3450.8,3450.1,0.01193689]
[1641443213855,2.22223367,3450.8,3450.5,0.0096632]
[1641443213856,0.345,3450.8,3450.5,0.0096632]
[1641443214154,0.345,3450.8,3450.4,1.36931482]
[1641443214452,0.345,3450.8,3450.5,0.0096632]
[1641443214853,0.345,3450.8,3449.7,0.01421059]
[1641443215054,0.345,3450.8,3450.6,2.16673632]
[1641443215253,0.345,3451.3,3450.6,2.16673632]
[1641443215499,0.345,3451.3,3450.7,1.12500683]
[1641443215886,0.345,3451.3,3450.8,0.00795793]
[1641443216101,0.13819997,3452.3,3450.8,0.00795793]
[1641443216291,0.13819997,3452.3,3452.0,1.96465894]
[1641443216492,0.13819997,3452.3,3450.8,3.77345793]
[1641443216691,0.13819997,3452.3,3450.8,1.00795793]
[1641443216891,0.13819997,3452.3,3450.9,0.00738951]
[1641443217499,0.13819997,3452.3,3451.6,1.83029342]
[1641443217796,0.13819997,3452.3,3451.7,0.00284212]
[1641443218993,0.48319997,3452.3,3451.7,0.00284212]
[1641443220337,0.43319997,3452.3,3451.7,0.00284212]
[1641443221942,2.70151139,3452.3,3451.7,0.00284212]
[1641443224493,0.345,3452.3,3451.7,0.00284212]
[1641443224692,0.00113685,3452.4,3451.6,2.07932276]
[1641443225093,0.00341054,3452.3,3451.6,2.07932276]
[1641443225494,0.00284212,3452.2,3451.6,2.07932276]
[1641443225696,0.00284212,3452.2,3452.0,0.72414]
[1641443225896,2.19599359,3453.7,3452.0,0.72414]
[1641443225897,0.0022737,3452.1,3452.0,0.72414]
[1641443226298,0.0022737,3452.1,3452.0,1.02414]
[1641443226494,0.0022737,3452.1,3452.0,9.00580346]
[1641443226961,0.0022737,3452.1,3452.0,10.11940346]
[1641443227162,0.0022737,3452.1,3452.0,11.14118494]
[1641443227562,0.345,3454.0,3452.8,0.7240144]
[1641443227961,0.01023162,3453.9,3452.8,0.7240144]
[1641443228372,0.00966319,3453.8,3452.8,0.7240144]
[1641443228565,0.00966319,3453.8,3452.9,1.35988678]
[1641443228763,0.00909477,3453.7,3452.4,1.44803]
[1641443229163,0.00852635,3453.6,3452.4,1.44803]
[1641443229664,0.00795792,3453.5,3453.3,2.1786696]
[1641443230064,3.7573895,3453.4,3453.3,2.1786696]
[1641443230889,3.7573895,3453.4,3452.2,5.17523]
[1641443230890,4.0573895,3453.4,3452.2,3.7272]
[1641443231100,4.0573895,3453.4,3452.0,0.13819997]
[1641443231101,4.96474023,3453.3,3452.0,0.13819997]
[1641443231293,0.345,3453.2,3452.0,0.13819997]
[1641443231504,0.35125265,3453.2,3452.0,0.13819997]
[1641443231694,0.72435,3452.7,3452.0,0.13819997]
[1641443231894,0.72435,3452.7,3451.1,0.1208]
[1641443231895,1.67018668,3452.4,3451.9,2.07460808]
[1641443232094,0.34784211,3452.6,3451.9,2.07460808]
[1641443232294,0.00113684,3452.3,3451.9,2.07460808]
[1641443232494,0.00227369,3452.5,3451.9,2.07460808]
[1641443232693,0.00227369,3452.5,3451.3,1.18072337]
[1641443232694,0.72438,3452.3,3451.3,1.18072337]
[1641443232894,0.345,3452.2,3451.3,1.18072337]
[1641443233095,0.345,3452.2,3451.4,0.00397897]
[1641443233699,0.7244441,3452.0,3451.4,0.00397897]
[1641443234001,0.72447,3451.7,3451.3,1.73423561]
[1641443234256,0.72447,3451.7,3450.9,0.00682109]
[1641443234257,1.06947,3451.7,3450.9,0.00682109]
[1641443234443,0.3,3451.6,3450.9,0.00682109]
[1641443234643,0.345,3451.7,3450.9,0.00682109]
[1641443234843,7.7,3451.6,3449.7,3.21970913]
[1641443235043,0.72463,3450.6,3450.5,0.00227369]
[1641443235443,0.00341054,3451.5,3450.5,0.00227369]
[1641443235842,0.00284212,3451.4,3450.5,0.00227369]
[1641443236044,0.7245057,3451.3,3450.5,0.00227369]
[1641443236244,0.7267794,3451.3,3450.5,0.00227369]
[1641443236445,0.00170527,3451.2,3450.5,0.00227369]
[1641443236648,0.7245,3451.0,3450.5,0.00227369]
[1641443236843,0.00113685,3451.1,3450.5,0.00227369]
[1641443237143,2.1738897,3450.9,3450.5,0.00227369]
[1641443237543,0.72471,3450.5,3449.6,0.01213208]
[1641443237744,0.72471,3450.5,3450.1,0.00227369]
[1641443238288,1.4495629,3450.3,3449.4,2.13071791]
[1641443238490,1.7945629,3450.3,3449.1,3.9232]
[1641443238693,1.7945629,3450.3,3448.7,0.46280049]
[1641443238694,8.82482,3450.2,3448.7,0.448902]
[1641443238889,0.72499,3449.5,3448.7,0.448902]
[1641443239091,1.4500943,3449.2,3448.7,0.448902]
[1641443239490,2.20165017,3448.9,3448.7,0.448902]
[1641443239694,2.20165017,3448.9,3448.3,0.817402]
[1641443239695,4.9,3448.8,3448.3,0.817402]
[1641443239892,6.69546,3448.8,3448.3,0.817402]
[1641443240091,0.7252258,3448.6,3446.8,0.01243395]
[1641443240292,1.4505702,3448.2,3446.8,0.01243395]
[1641443240493,1.4505702,3448.2,3447.0,0.00795793]
[1641443240692,1.97559482,3448.0,3447.5,1.63307797]
[1641443241092,0.72527,3447.9,3447.6,0.00454739]
[1641443241739,1.45056,3447.9,3447.6,0.00454739]
[1641443242340,3.24697851,3447.9,3447.6,0.00454739]
[1641443242943,2.52170851,3447.9,3446.9,0.00852635]
[1641443243143,0.72531,3447.5,3446.9,0.00852635]
[1641443243545,1.73164132,3447.3,3446.9,0.00852635]
[1641443244145,1.73164132,3447.3,3445.9,0.01421059]
[1641443244146,2.45701132,3447.3,3445.9,0.01421059]
[1641443244344,2.45701132,3447.3,3446.1,0.01307374]
[1641443244548,2.45701132,3447.3,3445.9,0.01421059]
[1641443244944,0.72537,3447.3,3446.1,1.98805827]
[1641443245346,0.0038876,3447.7,3446.2,0.01250532]
[1641443245996,1.87355126,3447.7,3447.3,1.8287423]
[1641443246196,1.87355126,3447.7,3446.7,1.12848085]
[1641443246398,1.87355126,3447.7,3447.4,0.00568424]
[1641443246597,1.87355126,3447.7,3446.8,0.00909478]
[1641443246799,1.87355126,3447.7,3445.9,1.01421059]
[1641443246997,1.87355126,3447.7,3446.0,0.01364217]
[1641443247205,1.82717907,3447.0,3446.0,0.01364217]
[1641443247399,1.82717907,3447.0,3445.9,0.01421059]
[1641443247599,1.82717907,3447.0,3446.1,1.23183029]
[1641443248000,1.82717907,3447.0,3446.2,0.01250532]
[1641443248199,1.82717907,3447.0,3446.3,1.62811077]
[1641443248600,1.82717907,3447.0,3446.4,0.01136847]
[1641443248803,0.00388882,3446.9,3446.4,0.01136847]
[1641443249233,0.00388882,3446.9,3446.4,0.78904793]
[1641443249634,0.00388882,3446.9,3446.5,0.01080005]
[1641443250537,0.00388882,3446.9,3446.5,0.78847951]
[1641443250934,0.00388882,3446.9,3446.6,0.01023162]
[1641443251734,1.45114,3446.8,3446.6,0.01023162]
[1641443252339,0.00388882,3446.9,3446.7,0.77767946]
[1641443252550,0.00388882,3446.9,3446.8,0.77767946]
[1641443252741,8.882e-05,3446.9,3446.8,0.78677424]
[1641443252987,8.882e-05,3446.9,3446.8,0.79920105]
[1641443253594,8.882e-05,3446.9,3446.8,0.78677424]
[1641443253994,1.63631381,3447.2,3446.8,0.78677424]
[1641443254493,1.63631381,3447.2,3446.9,0.00852635]
[1641443256397,0.72537,3447.5,3446.9,0.00852635]
[1641443257440,2.33180876,3447.5,3446.9,0.00852635]
[1641443258843,0.72537,3447.5,3446.9,0.00852635]
[1641443259044,0.08819997,3447.8,3446.9,0.00852635]
[1641443259447,0.00170527,3448.7,3446.9,0.02096131]
[1641443259846,0.00113684,3448.6,3447.0,0.04324639]
[1641443260048,1.83362941,3448.6,3448.3,0.77767946]
[1641443260257,1.83249257,3448.6,3448.3,0.77767946]
[1641443260698,1.83249257,3448.6,3448.4,0.77767946]
[1641443261898,12.19402939,3448.5,3447.1,0.00738951]
[1641443262099,1.0,3448.4,3447.1,0.00738951]
[1641443262299,4.07637278,3448.3,3447.1,0.00738951]
[1641443262498,1.345,3448.2,3446.9,0.00852635]
[1641443262701,0.72541,3447.7,3446.9,0.00852635]
[1641443263004,1.62006191,3447.1,3446.7,0.3]
[1641443263299,1.62006191,3447.1,3446.8,0.00909478]
[1641443264107,7.8,3446.9,3445.4,1.40379996]
[1641443264341,0.345,3446.9,3446.0,0.00454739]
[1641443264740,0.345,3446.9,3445.3,1.14908773]
[1641443264940,1.77667706,3445.6,3445.3,1.14056138]
[1641443265141,0.345,3446.5,3445.4,0.00795793]
[1641443265940,0.72569,3446.2,3445.4,0.00795793]
[1641443266145,0.345,3446.5,3445.1,0.0096632]
[1641443266744,1.84553203,3445.8,3445.3,1.69518724]
[1641443266944,1.84553203,3445.8,3445.1,1.32226211]
[1641443267144,1.84553203,3445.8,3445.4,0.00795793]
[1641443267343,1.84553203,3445.8,3445.2,0.00909477]
[1641443268807,1.84553203,3445.8,3445.1,0.0096632]
[1641443269008,1.84553203,3445.8,3444.9,0.01080004]
[1641443269507,1.0,3446.5,3444.9,0.01080004]
[1641443269508,2.05151192,3445.0,3444.9,0.01080004]
[1641443270407,2.05151192,3445.0,3444.1,0.01233668]
[1641443270608,6.7,3444.9,3443.1,6.9373]
[1641443270812,0.345,3445.1,3444.2,0.00397897]
[1641443271409,0.72602,3444.7,3443.7,0.00682109]
[1641443271611,0.7260952,3444.5,3443.7,0.00682109]
[1641443271852,2.15813944,3444.1,3443.7,1.94329264]
[1641443272047,0.345,3444.7,3443.7,1.94329264]
[1641443272251,0.72585,3445.4,3443.8,0.01917893]
[1641443272449,0.345,3445.5,3443.8,0.01917893]
[1641443272651,0.00227369,3445.3,3443.9,0.00568424]
[1641443272853,2.14219866,3445.0,3444.6,2.26709781]
[1641443273051,2.14219866,3445.0,3444.0,0.04324639]
[1641443273250,2.14219866,3445.0,3444.7,0.00113685]
[1641443273458,2.14219866,3445.0,3444.1,0.00454739]
[1641443274354,0.72598,3444.8,3443.9,0.00568424]
[1641443274554,3.59422866,3445.0,3443.9,0.00568424]
[1641443274855,1.345,3444.9,3443.6,0.00738951]
[1641443275054,3.90710767,3444.8,3443.6,0.00738951]
[1641443275355,0.345,3444.7,3442.9,0.01136847]
[1641443275588,2.07110641,3443.5,3443.1,1.92807648]
[1641443275784,0.72612,3444.1,3443.1,1.92807648]
[1641443275988,0.72612,3444.1,3443.2,0.0096632]
[1641443276384,0.72612,3444.1,3443.6,1.39370909]
[1641443276586,0.345,3444.4,3443.6,1.39370909]
[1641443276785,2.17413009,3444.1,3443.7,2.04456426]
[1641443277185,2.17413009,3444.1,3443.8,0.00625266]
[1641443277387,1.07099,3444.8,3443.8,0.00625266]
[1641443277987,0.345,3444.8,3443.8,0.00625266]
[1641443278287,1.45209,3444.6,3443.8,0.00625266]
[1641443278690,1.45209,3444.6,3443.7,0.00682109]
[1641443279256,0.7261,3444.2,3443.7,0.00682109]
[1641443279441,1.77484125,3444.1,3443.7,0.00682109]
[1641443279641,1.77484125,3444.1,3443.3,0.00107454]
[1641443279642,1.77484125,3444.1,3443.4,0.00852636]
[1641443279843,4.26314731,3444.0,3443.4,0.00852636]
[1641443280044,0.7262096,3443.9,3443.4,0.00852636]
[1641443280242,0.72628,3443.8,3443.4,0.00852636]
[1641443281243,1.8100956,3443.5,3443.4,0.00852636]
[1641443281444,0.72628,3443.8,3443.4,0.00852636]
[1641443282452,1.97786498,3443.7,3443.4,0.00852636]
[1641443283709,1.79733,3444.3,3443.4,0.00852636]
[1641443283905,0.345,3444.8,3443.4,0.00852636]
[1641443284104,0.345,3444.8,3443.5,0.0128171]
[1641443284404,0.345,3444.8,3443.6,0.00738951]
[1641443284603,0.345,3444.8,3444.2,1.24052623]
[1641443284805,0.00284211,3445.4,3444.2,3.05273916]
[1641443285012,0.72592,3445.1,3444.3,0.00341054]
[1641443286004,0.72824369,3445.3,3443.6,0.00738951]
[1641443286209,0.72599,3444.8,3443.6,0.00738951]
[1641443287044,2.16248572,3444.2,3443.8,3.32831514]
[1641443287545,2.16248572,3444.2,3443.9,0.00568424]
[1641443290591,2.16248572,3444.2,3443.8,0.00625266]
[1641443291094,2.50748572,3444.2,3443.8,0.00625266]
[1641443292291,0.72614,3444.1,3443.8,0.00625266]
[1641443292493,0.345,3444.0,3443.8,0.00625266]
[1641443292695,7.7,3443.9,3443.7,0.00099728]
[1641443292894,0.345,3443.8,3443.7,0.00099728]
[1641443293599,0.345,3443.8,3441.7,2.56804545]
[1641443293600,7.8,3443.7,3441.7,2.56804545]
[1641443293803,1.74851564,3442.9,3441.8,3.6496]